fUST/lending_fUST_20250704
["ID","MTS","AMOUNT","RATE_DAILY","PERIOD"]
[369484697,1751593833170,-460.0,0.00016438,2]
[369484699,1751593833179,-460.0,0.00016438,2]
[369484701,1751593833188,-929.57,0.00016438,2]
[369484703,1751593833199,-460.0,0.00016438,2]
[369484705,1751593833209,-460.0,0.00016438,2]
[369484707,1751593833218,-471.68579679,0.00016438,2]
[369484709,1751593833228,-840.35,0.00016438,2]
[369484711,1751593833238,-460.0,0.00016438,2]
[369484713,1751593833248,-490.51,0.00016438,2]
[369484715,1751593833258,-460.0,0.00016438,2]
[369484717,1751593833268,-3235.53,0.00016438,2]
[369484719,1751593833278,-467.53870542,0.00016438,2]
[369484721,1751593833287,-460.0,0.00016438,2]
[369484723,1751593833297,-460.0,0.00016438,2]
[369484725,1751593833308,-474.20261233,0.00016438,2]
[369484727,1751593833317,-1017.51,0.00016438,2]
[369484729,1751593833327,-274.86871943,0.00016438,2]
[369484731,1751593833337,-460.0,0.00016438,2]
[369484734,1751593833347,-558.24,0.00016438,2]
[369484736,1751593833356,-566.21976983,0.00016438,2]
[369484738,1751593833366,-548.6362375,0.00016438,2]
[369484740,1751593833376,-460.0,0.00016438,2]
[369484742,1751593833386,-1884.35,0.00016438,2]
[369484744,1751593833395,-509.12429133,0.00016438,2]
[369484746,1751593833405,-460.0,0.00016438,2]
[369484748,1751593833415,-467.42843661,0.00016438,2]
[369484750,1751593833425,-464.45713543,0.00016438,2]
[369484752,1751593833435,-464.26357074,0.00016438,2]
[369484754,1751593833446,-492.12034018,0.00016438,2]
[369484756,1751593833455,-1056.27,0.00016438,2]
[369484758,1751593833464,-3849.0,0.00016438,2]
[369484760,1751593833474,-466.60060313,0.00016438,2]
[369484761,1751593833485,-443.33305066,0.00016438,2]
[369484764,1751593833495,-460.0,0.00016438,2]
[369484766,1751593833506,-2509.98,0.00016438,2]
[369484768,1751593833517,-489.94,0.00016438,2]
[369484770,1751593833527,-460.0,0.00016438,2]
[369484772,1751593833537,-460.0,0.00016438,2]
[369484774,1751593833547,-497.39,0.00016438,2]
[369484776,1751593833557,-460.0,0.00016438,2]
[369484778,1751593833567,-460.0,0.00016438,2]
[369484780,1751593833577,-460.0,0.00016438,2]
[369484782,1751593833586,-460.0,0.00016438,2]
[369484784,1751593833596,-2645.78,0.00016438,2]
[369484786,1751593833606,-460.0,0.00016438,2]
[369484788,1751593833617,-460.0,0.00016438,2]
[369484790,1751593833627,-1122.82,0.00016438,2]
[369484792,1751593833637,-460.0,0.00016438,2]
[369484794,1751593833648,-2141.37,0.00016438,2]
[369484796,1751593833658,-481.72,0.00016438,2]
[369484798,1751593833668,-612.68314077,0.00016438,2]
[369484801,1751593833686,-135.45685923,0.00016438,2]
[369484803,1751593833696,-396.4232092,0.00016438,2]
[369484805,1751593833706,-460.0,0.00016438,2]
[369484807,1751593833716,-439.5390313,0.00016438,2]
[369485175,1751593837732,-20.4609687,0.00016438,2]
[369485177,1751593837742,-237.91520319,0.00016438,2]
[369485179,1751593837752,-17.36782517,0.00016438,2]
[369485183,1751593837787,-442.63217483,0.00016438,2]
[369485185,1751593837796,-1158.4335159,0.00016438,2]
[369485188,1751593837808,-335.5464841,0.00016438,2]
[369485190,1751593837817,-460.0,0.00016438,2]
[369485192,1751593837827,-581.57,0.00016438,2]
[369485194,1751593837836,-461.73196262,0.00016438,2]
[369485196,1751593837845,-607.25604195,0.00016438,2]
[369485198,1751593837855,-460.0,0.00016438,2]
[369485200,1751593837864,-460.0,0.00016438,2]
[369485202,1751593837874,-465.98652057,0.00016438,2]
[369485204,1751593837883,-885.64,0.00016438,2]
[369485206,1751593837894,-461.40491929,0.00016438,2]
[369485208,1751593837903,-460.0,0.00016438,2]
[369485210,1751593837913,-460.0,0.00016438,2]
[369485212,1751593837922,-1623.76,0.00016438,2]
[369485214,1751593837932,-460.0,0.00016438,2]
[369485216,1751593837942,-1814.62,0.00016438,2]
[369485218,1751593837951,-396.54571219,0.00016438,2]
[369485220,1751593837961,-469.66219616,0.00016438,2]
[369485222,1751593837970,-460.0,0.00016438,2]
[369485224,1751593837979,-892.84,0.00016438,2]
[369485226,1751593837989,-460.0,0.00016438,2]
[369485228,1751593837999,-1816.49,0.00016438,2]
[369485230,1751593838009,-460.0,0.00016438,2]
[369485232,1751593838018,-460.0,0.00016438,2]
[369485234,1751593838029,-586.13,0.00016438,2]
[369485236,1751593838038,-465.90910849,0.00016438,2]
[369485238,1751593838048,-466.47864957,0.00016438,2]
[369485240,1751593838057,-700.81,0.00016438,2]
[369485242,1751593838066,-460.0,0.00016438,2]
[369485244,1751593838076,-3372.76,0.00016438,2]
[369485246,1751593838086,-575.6969649,0.000165,2]
[369485248,1751593838095,-159.3982008,0.000165,2]
[369485250,1751593838105,-644.95418724,0.00016686,2]
[369485252,1751593838114,-444.46,0.00016702,3]
[369485254,1751593838123,-282.559556,0.00016712,2]
[369485256,1751593838132,-151.0,0.00016712,2]
[369485258,1751593838142,-151.0,0.00016712,2]
[369485260,1751593838151,-460.0,0.00016712,2]
[369485262,1751593838160,-241.93913508,0.00016712,2]
[369485264,1751593838169,-489.427031,0.00016712,2]
[369485266,1751593838179,-489.427031,0.00016712,2]
[369485268,1751593838188,-489.427031,0.00016712,2]
[369485270,1751593838198,-489.427031,0.00016712,2]
[369485272,1751593838208,-151.0,0.00016712,2]
[369485274,1751593838217,-151.0,0.00016712,2]
[369485276,1751593838226,-463.07453262,0.00016712,2]
[369485278,1751593838236,-151.0,0.00016712,2]
[369485280,1751593838246,-151.0,0.00016712,2]
[369485298,1751593838388,-460.0,0.00016712,2]
[369485300,1751593838419,-171.691614,0.00016712,2]
[369485303,1751593838432,-460.0,0.00016712,2]
[369485305,1751593838444,-470.65669558,0.00016712,2]
[369485307,1751593838455,-460.0,0.00016712,2]
[369485309,1751593838464,-151.0,0.00016712,2]
[369485310,1751593838475,-151.0,0.00016712,2]
[369485313,1751593838484,-460.0,0.00016712,2]
[369485315,1751593838495,-460.0,0.00016712,2]
[369485317,1751593838507,-460.0,0.00016712,2]
[369485319,1751593838516,-464.93655594,0.00016712,2]
[369485321,1751593838526,-151.0,0.00016712,2]
[369485322,1751593838535,-151.0,0.00016712,2]
[369485324,1751593838545,-465.1258434,0.00016712,2]
[369485326,1751593838555,-460.49,0.00016712,2]
[369485328,1751593838564,-460.0,0.00016712,2]
[369485330,1751593838574,-269.327562,0.00016712,2]
[369485332,1751593838583,-269.327562,0.00016712,2]
[369485334,1751593838593,-269.327562,0.00016712,2]
[369485336,1751593838602,-468.70207757,0.00016712,2]
[369485338,1751593838612,-269.327562,0.00016712,2]
[369485340,1751593838621,-460.0,0.00016712,2]
[369485342,1751593838631,-722.78,0.00016712,2]
[369485344,1751593838641,-477.0,0.00016712,2]
[369485346,1751593838651,-1168.27,0.00016712,2]
[369485348,1751593838660,-469.44,0.00016712,2]
[369485350,1751593838670,-151.0,0.00016712,2]
[369485352,1751593838679,-151.0,0.00016712,2]
[369485354,1751593838689,-151.0,0.00016712,2]
[369485356,1751593838698,-151.0,0.00016712,2]
[369485358,1751593838708,-460.0,0.00016712,2]
[369485360,1751593838717,-460.0,0.00016712,2]
[369485362,1751593838727,-499.42,0.00016712,2]
[369485364,1751593838736,-669.28,0.00016712,2]
[369485366,1751593838745,-596.24,0.00016712,2]
[369485368,1751593838755,-460.0,0.00016712,2]
[369485370,1751593838766,-460.0,0.00016712,2]
[369485372,1751593838775,-460.0,0.00016712,2]
[369485374,1751593838785,-412.83772544,0.00016712,2]
[369485376,1751593838794,-464.54707245,0.00016712,2]
[369485378,1751593838804,-460.0,0.00016712,2]
[369485380,1751593838814,-460.0,0.00016712,2]
[369485382,1751593838823,-2749.04,0.00016712,2]
[369485384,1751593838832,-468.19010431,0.00016712,2]
[369485386,1751593838842,-151.0,0.00016712,2]
[369485388,1751593838851,-151.0,0.00016712,2]
[369485390,1751593838860,-151.0,0.00016712,2]
[369485392,1751593838870,-485.0,0.00016712,2]
[369485394,1751593838879,-1232.53,0.00016712,2]
[369485396,1751593838889,-460.0,0.00016712,2]
[369485399,1751593838899,-1085.17,0.00016712,2]
[369485401,1751593838908,-460.0,0.00016712,2]
[369485403,1751593838919,-1545.67,0.00016712,2]
[369485405,1751593838928,-510.5,0.00016712,2]
[369485407,1751593838938,-460.0,0.00016712,2]
[369485409,1751593838947,-816.29,0.00016712,2]
[369485411,1751593838956,-646.64,0.00016712,2]
[369485413,1751593838966,-353.8333474,0.00016712,2]
[369485415,1751593838975,-460.0,0.00016712,2]
[369485416,1751593838989,-2916.61,0.00016712,2]
[369485419,1751593838999,-620.65,0.00016712,2]
[369485421,1751593839008,-460.0,0.00016712,2]
[369485423,1751593839018,-420.46460989,0.00016712,2]
[369485425,1751593839027,-460.0,0.00016712,2]
[369485427,1751593839036,-929.57,0.00016712,2]
[369485429,1751593839046,-460.0,0.00016712,2]
[369485431,1751593839056,-467.25907653,0.00016712,2]
[369485433,1751593839066,-840.35,0.00016712,2]
[369485435,1751593839076,-469.86513854,0.00016712,2]
[369485437,1751593839086,-490.51,0.00016712,2]
[369485439,1751593839096,-467.90783162,0.00016712,2]
[369485441,1751593839105,-3235.53,0.00016712,2]
[369485443,1751593839114,-1017.51,0.00016712,2]
[369485445,1751593839123,-460.0,0.00016712,2]
[369485447,1751593839132,-558.24,0.00016712,2]
[369485449,1751593839142,-460.0,0.00016712,2]
[369485451,1751593839151,-1884.35,0.00016712,2]
[369485453,1751593839161,-402.96548221,0.00016712,2]
[369485455,1751593839171,-1056.27,0.00016712,2]
[369485457,1751593839180,-3849.0,0.00016712,2]
[369485459,1751593839189,-460.0,0.00016712,2]
[369485461,1751593839199,-2509.98,0.00016712,2]
[369485463,1751593839208,-489.94,0.00016712,2]
[369485465,1751593839217,-460.0,0.00016712,2]
[369485467,1751593839227,-460.0,0.00016712,2]
[369485469,1751593839236,-497.39,0.00016712,2]
[369485471,1751593839246,-460.0,0.00016712,2]
[369485472,1751593839254,-460.0,0.00016712,2]
[369485473,1751593839263,-472.73492472,0.00016712,2]
[369485474,1751593839272,-460.0,0.00016712,2]
[369485475,1751593839281,-2645.78,0.00016712,2]
[369485476,1751593839290,-470.70017802,0.00016712,2]
[369485478,1751593839300,-460.0,0.00016712,2]
[369485480,1751593839310,-1122.82,0.00016712,2]
[369485482,1751593839320,-460.0,0.00016712,2]
[369485484,1751593839329,-2141.37,0.00016712,2]
[369485486,1751593839338,-481.72,0.00016712,2]
[369485488,1751593839347,-748.14,0.00016712,2]
[369485490,1751593839357,-460.0,0.00016712,2]
[369485493,1751593839367,-460.0,0.00016712,2]
[369485496,1751593839377,-460.0,0.00016712,2]
[369485498,1751593839386,-1493.98,0.00016712,2]
[369485500,1751593839396,-581.57,0.00016712,2]
[369485502,1751593839405,-460.0,0.00016712,2]
[369485504,1751593839414,-460.0,0.00016712,2]
[369485506,1751593839424,-460.0,0.00016712,2]
[369485508,1751593839435,-885.64,0.00016712,2]
[369485510,1751593839444,-460.0,0.00016712,2]
[369485512,1751593839454,-460.0,0.00016712,2]
[369485514,1751593839463,-1623.76,0.00016712,2]
[369485516,1751593839472,-460.0,0.00016712,2]
[369485518,1751593839483,-1814.62,0.00016712,2]
[369485520,1751593839492,-460.0,0.00016712,2]
[369485521,1751593839502,-892.84,0.00016712,2]
[369485522,1751593839513,-460.0,0.00016712,2]
[369485523,1751593839522,-1816.49,0.00016712,2]
[369485524,1751593839532,-465.05685318,0.00016712,2]
[369485525,1751593839541,-460.0,0.00016712,2]
[369485526,1751593839551,-586.13,0.00016712,2]
[369485527,1751593839560,-700.81,0.00016712,2]
[369485528,1751593839569,-460.0,0.00016712,2]
[369485529,1751593839579,-3372.76,0.00016712,2]
[369485530,1751593839589,-583.2889075,0.000168,2]
[369485531,1751593839598,-159.3982008,0.000168,2]
[369485532,1751593839607,-177.6570982,0.000168,2]
[369485533,1751593839617,-575.6969649,0.000168,2]
[369485534,1751593839627,-230.37558374,0.00016827,2]
[369485535,1751593839636,-12575.98004106,0.00016827,2]
[369485536,1751593839646,-160.0,0.00016827,2]
[369485537,1751593839655,-837.389109,0.00016827,2]
[369485538,1751593839665,-160.0,0.00016827,2]
[369485539,1751593839674,-847.79783075,0.00016827,2]
[369485540,1751593839684,-213.94585247,0.00016827,2]
[369485541,1751593839694,-215.07701991,0.00016827,2]
[369485542,1751593839703,-151.0,0.00016827,2]
[369485543,1751593839712,-151.0,0.00016827,2]
[369485544,1751593839722,-151.0,0.00016833,2]
[369485545,1751593839732,-489.427031,0.00016833,2]
[369485546,1751593839741,-489.427031,0.00016833,2]
[369485547,1751593839750,-151.0,0.00016833,2]
[369485548,1751593839761,-151.0,0.00016833,2]
[369485549,1751593839770,-151.0,0.00016833,2]
[369485550,1751593839779,-967.0,0.00016879,2]
[369485551,1751593839789,-648.168,0.00016879,2]
[369485552,1751593839798,-2152.0,0.00016879,2]
[369485553,1751593839808,-406.0,0.00016879,2]
[369485554,1751593839818,-426.698,0.00016879,2]
[369485555,1751593839827,-151.0,0.00016886,2]
[369485556,1751593839836,-151.0,0.000169,2]
[369485557,1751593839845,-269.327562,0.000169,2]
[369485558,1751593839855,-269.327562,0.000169,2]
[369485559,1751593839864,-331.31250038,0.000169,2]
[369485560,1751593840081,-760.35233647,0.000169,2]
[369485561,1751593840093,-1042.50000061,0.000169,2]
[369485562,1751593840104,-771.91842704,0.000169,2]
[369485563,1751593840116,-751.42999026,0.000169,2]
[369485564,1751593840125,-500.0,0.00016985,2]
[369485565,1751593840135,-500.0,0.00016985,2]
[369485566,1751593840144,-176.22814448,0.00016985,2]
[369485567,1751593840153,-500.0,0.00016985,2]
[369485568,1751593840162,-176.80248206,0.00016985,2]
[369485569,1751593840172,-500.0,0.00016985,2]
[369485570,1751593840181,-500.0,0.00016985,2]
[369485571,1751593840190,-500.0,0.00016985,2]
[369485572,1751593840199,-529.49663933,0.00016985,2]
[369485573,1751593840208,-112.44643496,0.00016985,2]
[369485575,1751593840243,-257.3189741,0.00016985,2]
[369485577,1751593840259,-130.23459094,0.00016985,2]
[369485580,1751593840269,-500.0,0.00016985,2]
[369485582,1751593840278,-151.0,0.00016986,2]
[369485584,1751593840288,-151.0,0.00016986,2]
[369485586,1751593840297,-151.0,0.00016986,2]
[369485588,1751593840307,-151.0,0.00016986,2]
[369485590,1751593840316,-151.0,0.00016986,2]
[369485592,1751593840325,-151.0,0.00016986,2]
[369485594,1751593840335,-151.0,0.00016986,2]
[369485596,1751593840345,-151.0,0.00016986,2]
[369485598,1751593840355,-326.966098,0.00016986,2]
[369485600,1751593840365,-151.0,0.00016986,2]
[369485602,1751593840377,-326.966098,0.00016986,2]
[369485604,1751593840386,-151.0,0.00016986,2]
[369485606,1751593840396,-151.0,0.00016986,2]
[369485608,1751593840407,-151.0,0.00016986,2]
[369485610,1751593840417,-151.97094,0.00016986,2]
[369485612,1751593840429,-151.0,0.00016986,2]
[369485614,1751593840440,-151.0,0.00016986,2]
[369485616,1751593840449,-460.0,0.00016986,2]
[369485618,1751593840458,-489.427031,0.00016986,2]
[369485620,1751593840470,-489.427031,0.00016986,2]
[369485621,1751593840480,-489.427031,0.00016986,2]
[369485622,1751593840490,-489.427031,0.00016986,2]
[369485624,1751593840499,-489.427031,0.00016986,2]
[369485626,1751593840511,-489.427031,0.00016986,2]
[369485628,1751593840520,-151.0,0.00016986,2]
[369485630,1751593840530,-151.0,0.00016986,2]
[369485632,1751593840539,-151.0,0.00016986,2]
[369485634,1751593840548,-151.0,0.00016986,2]
[369485636,1751593840558,-71.29993549,0.00016986,2]
[369485638,1751593840571,-388.70006451,0.00016986,2]
[369485640,1751593840581,-460.0,0.00016986,2]
[369485642,1751593840591,-460.0,0.00016986,2]
[369485644,1751593840601,-151.0,0.00016986,2]
[369485647,1751593840611,-151.0,0.00016986,2]
[369485649,1751593840621,-505.29775541,0.00016986,2]
[369485651,1751593840632,-182.64915264,0.00016986,2]
[369485653,1751593840642,-460.0,0.00016986,2]
[369485655,1751593840652,-151.0,0.00016986,2]
[369485657,1751593840662,-151.0,0.00016986,2]
[369485659,1751593840671,-460.49,0.00016986,2]
[369485661,1751593840681,-180.91755637,0.00016986,2]
[369485663,1751593840690,-269.327562,0.00016986,2]
[369485665,1751593840699,-269.327562,0.00016986,2]
[369485667,1751593840708,-269.327562,0.00016986,2]
[369485669,1751593840718,-269.327562,0.00016986,2]
[369485671,1751593840728,-460.0,0.00016986,2]
[369485690,1751593840896,-722.78,0.00016986,2]
[369485692,1751593840906,-477.0,0.00016986,2]
[369485694,1751593840915,-1168.27,0.00016986,2]
[369485696,1751593840926,-469.44,0.00016986,2]
[369485699,1751593840935,-151.0,0.00016986,2]
[369485700,1751593840945,-151.0,0.00016986,2]
[369485701,1751593840955,-151.0,0.00016986,2]
[369485702,1751593840965,-177.213055,0.00016986,2]
[369485704,1751593840975,-460.0,0.00016986,2]
[369485706,1751593840984,-190.75170023,0.00016986,2]
[369485708,1751593840996,-269.24829977,0.00016986,2]
[369485710,1751593841006,-281.55863433,0.00016986,2]
[369485713,1751593841018,-387.72136567,0.00016986,2]
[369485715,1751593841027,-596.24,0.00016986,2]
[369485717,1751593841037,-460.0,0.00016986,2]
[369485718,1751593841047,-460.0,0.00016986,2]
[369485720,1751593841056,-460.0,0.00016986,2]
[369485722,1751593841065,-460.0,0.00016986,2]
[369485724,1751593841075,-460.0,0.00016986,2]
[369485726,1751593841085,-2749.04,0.00016986,2]
[369485728,1751593841094,-301.154996,0.00016986,2]
[369485730,1751593841103,-485.0,0.00016986,2]
[369485732,1751593841113,-1232.53,0.00016986,2]
[369485734,1751593841123,-505.15638989,0.00016986,2]
[369485736,1751593841133,-1085.17,0.00016986,2]
[369485738,1751593841142,-460.0,0.00016986,2]
[369485740,1751593841152,-1545.67,0.00016986,2]
[369485742,1751593841161,-510.5,0.00016986,2]
[369485744,1751593841171,-460.0,0.00016986,2]
[369485746,1751593841180,-816.29,0.00016986,2]
[369485748,1751593841190,-646.64,0.00016986,2]
[369485750,1751593841199,-460.0,0.00016986,2]
[369485751,1751593841208,-2916.61,0.00016986,2]
[369485752,1751593841219,-620.65,0.00016986,2]
[369485753,1751593841228,-460.0,0.00016986,2]
[369485754,1751593841238,-460.0,0.00016986,2]
[369485755,1751593841247,-929.57,0.00016986,2]
[369485756,1751593841257,-460.0,0.00016986,2]
[369485757,1751593841267,-840.35,0.00016986,2]
[369485758,1751593841276,-490.51,0.00016986,2]
[369485759,1751593841286,-3235.53,0.00016986,2]
[369485760,1751593841295,-305.74678738,0.00016986,2]
[369485761,1751593841305,-1017.51,0.00016986,2]
[369485762,1751593841315,-460.0,0.00016986,2]
[369485763,1751593841324,-558.24,0.00016986,2]
[369485764,1751593841334,-460.0,0.00016986,2]
[369485765,1751593841344,-1884.35,0.00016986,2]
[369485766,1751593841353,-1056.27,0.00016986,2]
[369485767,1751593841363,-3849.0,0.00016986,2]
[369485768,1751593841374,-2509.98,0.00016986,2]
[369485769,1751593841384,-460.0,0.00016986,2]
[369485770,1751593841394,-489.94,0.00016986,2]
[369485771,1751593841403,-460.0,0.00016986,2]
[369485772,1751593841413,-460.0,0.00016986,2]
[369485773,1751593841423,-467.31250517,0.00016986,2]
[369485774,1751593841435,-497.39,0.00016986,2]
[369485775,1751593841444,-460.0,0.00016986,2]
[369485776,1751593841454,-585.58,0.00016986,2]
[369485777,1751593841464,-2645.78,0.00016986,2]
[369485778,1751593841474,-460.0,0.00016986,2]
[369485779,1751593841484,-1122.82,0.00016986,2]
[369485780,1751593841495,-557.56108293,0.00016986,2]
[369485781,1751593841505,-2141.37,0.00016986,2]
[369485782,1751593841516,-481.72,0.00016986,2]
[369485783,1751593841526,-748.14,0.00016986,2]
[369485784,1751593841537,-460.0,0.00016986,2]
[369485785,1751593841548,-460.0,0.00016986,2]
[369485786,1751593841558,-460.0,0.00016986,2]
[369485787,1751593841568,-1493.98,0.00016986,2]
[369485788,1751593841579,-581.57,0.00016986,2]
[369485789,1751593841589,-460.0,0.00016986,2]
[369485790,1751593841599,-460.0,0.00016986,2]
[369485791,1751593841609,-460.0,0.00016986,2]
[369485792,1751593841619,-885.64,0.00016986,2]
[369485793,1751593841629,-460.0,0.00016986,2]
[369485794,1751593841640,-370.94581382,0.00016986,2]
[369485795,1751593841650,-1623.76,0.00016986,2]
[369485796,1751593841661,-460.0,0.00016986,2]
[369485797,1751593841670,-1814.62,0.00016986,2]
[369485798,1751593841681,-595.1943999,0.00016986,2]
[369485799,1751593841691,-892.84,0.00016986,2]
[369485800,1751593841701,-1816.49,0.00016986,2]
[369485801,1751593841711,-460.0,0.00016986,2]
[369485802,1751593841721,-239.61284158,0.00016986,2]
[369485803,1751593841731,-586.13,0.00016986,2]
[369485804,1751593841741,-700.81,0.00016986,2]
[369485805,1751593841751,-468.04938793,0.00016986,2]
[369485806,1751593841761,-3372.76,0.00016986,2]
[369485807,1751593841772,-854.45013877,0.00017,2]
[369485808,1751593841781,-151.0,0.00017,2]
[369485809,1751593841791,-151.0,0.00017,2]
[369485810,1751593841801,-151.0,0.00017,2]
[369485811,1751593841811,-300.268677,0.00017,2]
[369485812,1751593841821,-168.988996,0.00017,2]
[369485813,1751593841831,-151.0,0.00017,2]
[369485814,1751593841840,-12575.98004106,0.00017,7]
[369485815,1751593841851,-213.94585247,0.00017,7]
[369485816,1751593841862,-847.79783075,0.00017,7]
[369485817,1751593841871,-175.408,0.00017108,2]
[369485818,1751593841882,-150.413,0.00017108,2]
[369485819,1751593841891,-150.419,0.00017108,2]
[369485820,1751593841901,-150.777,0.00017108,2]
[369485821,1751593841911,-150.0,0.00017108,2]
[369485822,1751593841921,-151.011,0.00017108,2]
[369485823,1751593841931,-217.485,0.00017108,2]
[369485824,1751593841940,-294.328873,0.00017108,2]
[369485825,1751593841950,-294.328873,0.00017108,2]
[369485826,1751593841960,-182.018915,0.00017108,2]
[369485827,1751593841971,-269.327562,0.00017108,2]
[369485828,1751593841982,-269.327562,0.00017108,2]
[369485829,1751593841991,-366.4782688,0.0001715,2]
[369485830,1751593842000,-3657.51325462,0.00017176,2]
[369485831,1751593842009,-167.565203,0.0001726,2]
[369485832,1751593842019,-294.328873,0.0001726,2]
[369485833,1751593842235,-294.328873,0.0001726,2]
[369485835,1751593842246,-151.0,0.0001726,2]
[369485837,1751593842255,-151.0,0.0001726,2]
[369485838,1751593842265,-151.0,0.0001726,2]
[369485839,1751593842275,-151.0,0.0001726,2]
[369485840,1751593842285,-151.0,0.0001726,2]
[369485841,1751593842294,-151.0,0.0001726,2]
[369485842,1751593842304,-151.0,0.0001726,2]
[369485843,1751593842314,-151.0,0.0001726,2]
[369485844,1751593842324,-326.966098,0.0001726,2]
[369485845,1751593842333,-326.966098,0.0001726,2]
[369485846,1751593842343,-151.0,0.0001726,2]
[369485847,1751593842353,-151.0,0.0001726,2]
[369485848,1751593842362,-151.0,0.0001726,2]
[369485849,1751593842372,-151.0,0.0001726,2]
[369485850,1751593842381,-470.7254313,0.0001726,2]
[369485851,1751593842391,-489.427031,0.0001726,2]
[369485852,1751593842402,-489.427031,0.0001726,2]
[369485853,1751593842412,-489.427031,0.0001726,2]
[369485854,1751593842422,-489.427031,0.0001726,2]
[369485855,1751593842431,-151.0,0.0001726,2]
[369485856,1751593842443,-151.0,0.0001726,2]
[369485857,1751593842452,-460.0,0.0001726,2]
[369485858,1751593842462,-279.17242404,0.0001726,2]
[369485859,1751593842471,-460.0,0.0001726,2]
[369485860,1751593842482,-460.0,0.0001726,2]
[369485861,1751593842492,-460.49,0.0001726,2]
[369485862,1751593842502,-269.327562,0.0001726,2]
[369485864,1751593842513,-269.327562,0.0001726,2]
[369485865,1751593842522,-269.327562,0.0001726,2]
[369485866,1751593842532,-269.327562,0.0001726,2]
[369485867,1751593842541,-186.60402646,0.0001726,2]
[369485868,1751593842551,-244.12118646,0.0001726,2]
[369485870,1751593842565,-478.65881354,0.0001726,2]
[369485872,1751593842574,-477.0,0.0001726,2]
[369485874,1751593842583,-1168.27,0.0001726,2]
[369485876,1751593842593,-469.44,0.0001726,2]
[369485878,1751593842603,-151.0,0.0001726,2]
[369485880,1751593842612,-107.14021733,0.0001726,2]
[369485882,1751593842624,-43.85978267,0.0001726,2]
[369485884,1751593842633,-466.92311234,0.0001726,2]
[369485886,1751593842643,-460.0,0.0001726,2]
[369485888,1751593842652,-669.28,0.0001726,2]
[369485890,1751593842662,-596.24,0.0001726,2]
[369485892,1751593842679,-460.0,0.0001726,2]
[369485894,1751593842691,-460.0,0.0001726,2]
[369485896,1751593842701,-339.32861692,0.0001726,2]
[369485898,1751593842712,-120.67138308,0.0001726,2]
[369485900,1751593842722,-460.0,0.0001726,2]
[369485901,1751593842731,-460.0,0.0001726,2]
[369485902,1751593842740,-1020.90231728,0.0001726,2]
[369485903,1751593842753,-644.33175654,0.0001726,2]
[369485924,1751593842942,-460.0,0.00016438,2]
[369485926,1751593842953,-460.0,0.00016712,2]
[369485928,1751593842963,-241.93913507,0.00016712,2]
[369485930,1751593842974,-460.0,0.00016986,2]
[369485932,1751593842984,-100.27034376,0.0001726,2]
[369485934,1751593842995,-350.8164,0.0001726,2]
[369485936,1751593843007,-632.71918242,0.0001726,2]
[369485938,1751593843016,-485.0,0.0001726,2]
[369485941,1751593843026,-1232.53,0.0001726,2]
[369485944,1751593843035,-21.13999912,0.0001726,2]
[369485946,1751593843047,-259.93009496,0.0001726,2]
[369485948,1751593843058,-700.0,0.0001726,2]